[Event "Hunan Belt and Road Open 2019"]
[Site "Hunan"]
[Date "2019.08.03"]
[Round "6.29"]
[White "Peng, Xiongjian"]
[Black "Zhao, Chenxi"]
[Result "1-0"]
[ECO "A49"]
[WhiteElo "2467"]
[BlackElo "2400"]
[Annotator "ChessBase"]
[PlyCount "59"]
[EventDate "2019.07.29"]
[EventType "swiss"]
[EventCountry "CHN"]
[SourceTitle "playchess.com"]
[Source "ChessBase"]
[SourceQuality "1"]
[TimeControl "5400+30"]

1. Nf3 {[%emt 0:00:00]} Nf6 {[%emt 0:00:00]} 2. g3 {[%emt 0:00:00]} g6 {[%emt 0:00:00]} 3. Bg2 {[%emt 0:00:12]} Bg7 {[%emt 0:00:00]} 4. d4 {[%emt 0:00:11]} O-O {[%emt 0:00:00]} 5. O-O {[%emt 0:00:11]} c6 {[%emt 0:00:07]} 6. b3 {[%emt 0:01:11]} d6 {[%emt 0:04:14]} 7. Bb2 {[%emt 0:00:07]} Qa5 {[%emt 0:00:18]} 8. Nbd2 {[%emt 0:00:46]} Qh5 {[%emt 0:00:11]} 9. h4 {[%emt 0:03:13]} c5 {[%emt 0:02:00]} 10. c4 {[%emt 0:02:01]} cxd4 {[%emt 0:01:44]} 11. Nxd4 {[%emt 0:00:36]} Na6 {[%emt 0:01:30]} 12. Re1 {[%emt 0:03:26]} Rd8 {[%emt 0:07:11]} 13. Nf1 {[%emt 0:01:01]} d5 {[%emt 0:06:18]} 14. cxd5 {[%emt 0:00:40]} Nxd5 {[%emt 0:00:59]} 15. e4 {[%emt 0:01:39]} Ndb4 {[%emt 0:03:14]} 16. e5 {[%emt 0:11:30]} Qxd1 {[%emt 0:08:27]} 17. Raxd1 {[%emt 0:01:38]} Nxa2 {[%emt 0:07:07]} 18. f4 {[%emt 0:03:11]} N2b4 {[%emt 0:01:44]} 19. Ne3 {[%emt 0:01:20]} Rb8 {[%emt 0:06:17]} 20. Ba3 {[%emt 0:05:17]} f6 {[%emt 0:02:48]} 21. e6 {[%emt 0:11:59]} f5 {[%emt 0:10:54]} 22. Ndxf5 {[%emt 0:09:09]} Rxd1 {[%emt 0:05:48]} 23. Nxe7+ {[%emt 0:01:26]} Kf8 {[%emt 0:00:06]} 24. Rxd1 {[%emt 0:00:45]} Kxe7 {[%emt 0:00:07]} 25. Nd5+ {[%emt 0:00:53]} Ke8 {[%emt 0:00:05]} 26. Nxb4 {[%emt 0:07:04]} Nxb4 {[%emt 0:01:13]} 27. Bxb4 {[%emt 0:00:06]} Bxe6 {[%emt 0:00:05]} 28. Rc1 {[%emt 0:00:04]} Rc8 {[%emt 0:00:46]} 29. Re1 {[%emt 0:02:10]} Kf7 {[%emt 0:04:13]} 30. Rxe6 {[%emt 0:00:10]} 1-0

[Event "Hunan Belt and Road Open 2019"]
[Site "Hunan"]
[Date "2019.08.03"]
[Round "6.30"]
[White "Lin, Yi"]
[Black "Wang, Yiye"]
[Result "1/2-1/2"]
[ECO "E05"]
[WhiteElo "2406"]
[BlackElo "2440"]
[Annotator "NA"]
[PlyCount "48"]
[EventDate "2019.07.29"]
[EventType "swiss"]
[EventCountry "CHN"]
[SourceTitle "playchess.com"]
[Source "ChessBase"]
[SourceQuality "1"]
[TimeControl "5400+30"]

1. d4 {[%emt 0:00:00]} Nf6 {[%emt 0:00:00]} 2. c4 {[%emt 0:00:00]} e6 {[%emt 0:00:14]} 3. g3 {[%emt 0:00:04]} d5 {[%emt 0:00:24]} 4. Nf3 {[%emt 0:00:12]} Be7 {[%emt 0:00:37]} 5. Bg2 {[%emt 0:00:12]} O-O {[%emt 0:00:27]} 6. O-O {[%emt 0:00:46]} dxc4 {[%emt 0:01:07]} 7. Qc2 {[%emt 0:01:07]} b6 {[%emt 0:02:50]} 8. Ne5 {[%emt 0:04:29]} Qxd4 {[%emt 0:02:59]} 9. Bxa8 {[%emt 0:03:55]} Qxe5 {[%emt 0:00:09]} 10. Bf3 {[%emt 0:00:58]} Nd5 {[%emt 0:03:21]} 11. Qxc4 {[%emt 0:02:11]} Ba6 {[%emt 0:01:08]} 12. Qb3 {[%emt 0:04:34]} Nc6 {[%emt 0:14:44]} 13. Qa4 {[%emt 0:04:17]} Bb7 {[%emt 0:05:56]} 14. Rd1 {[%emt 0:05:59]} Bc5 {[%emt 0:05:49]} 15. Nc3 {[%emt 0:05:30]} Nd4 {[%emt 0:07:04]} 16. Bxd5 {[%emt 0:03:26]} exd5 {[%emt 0:01:13]} 17. Be3 {[%emt 0:03:16]} Nxe2+ {[%emt 0:10:58]} 18. Nxe2 {[%emt 0:00:17]} Bxe3 {[%emt 0:00:07]} 19. fxe3 {[%emt 0:01:26]} Qxe3+ {[%emt 0:00:08]} 20. Kf1 {[%emt 0:00:06]} Re8 {[%emt 0:00:35]} 21. Re1 {[%emt 0:04:50]} Qf3+ {[%emt 0:02:11]} 22. Kg1 {[%emt 0:00:06]} Qe3+ {[%emt 0:02:13]} 23. Kf1 {[%emt 0:00:06]} Qf3+ {[%emt 0:03:26]} 24. Kg1 {[%emt 0:00:05]} Qe3+ {[%emt 0:01:05]} 1/2-1/2

[Event "Hunan Belt and Road Open 2019"]
[Site "Hunan"]
[Date "2019.08.03"]
[Round "6.32"]
[White "Xu, Jun"]
[Black "Gan-Erdene, Sugar"]
[Result "1/2-1/2"]
[ECO "E94"]
[WhiteElo "2477"]
[BlackElo "2408"]
[Annotator "ChessBase"]
[PlyCount "92"]
[EventDate "2019.07.29"]
[EventType "swiss"]
[EventCountry "CHN"]
[SourceTitle "playchess.com"]
[Source "ChessBase"]
[SourceQuality "1"]
[TimeControl "5400+30"]

1. d4 {[%emt 0:00:00]} Nf6 {[%emt 0:00:00]} 2. c4 {[%emt 0:00:00]} g6 {[%emt 0:00:00]} 3. Nc3 {[%emt 0:00:00]} Bg7 {[%emt 0:00:00]} 4. e4 {[%emt 0:00:01]} d6 {[%emt 0:00:00]} 5. Be2 {[%emt 0:00:14]} O-O {[%emt 0:00:03]} 6. Nf3 {[%emt 0:00:03]} Na6 {[%emt 0:00:47]} 7. O-O {[%emt 0:00:43]} e5 {[%emt 0:00:05]} 8. Be3 {[%emt 0:00:05]} Ng4 {[%emt 0:00:05]} 9. Bg5 {[%emt 0:01:09]} Qe8 {[%emt 0:00:36]} 10. dxe5 {[%emt 0:04:59]} Nxe5 {[%emt 0:00:00]} 11. Nd4 {[%emt 0:07:04]} Nc6 {[%emt 0:00:04]} 12. Ndb5 {[%emt 0:01:25]} f5 {[%emt 0:00:22]} 13. exf5 {[%emt 0:04:55]} Bxf5 {[%emt 0:00:04]} 14. Re1 {[%emt 0:02:29]} Qd7 {[%emt 0:03:06]} 15. Bf3 {[%emt 0:04:14]} Rae8 {[%emt 0:00:26]} 16. Qd2 {[%emt 0:01:08]} Nab4 {[%emt 0:05:39]} 17. Nd5 {[%emt 0:04:58]} Nxd5 {[%emt 0:04:06]} 18. cxd5 {[%emt 0:07:07]} Ne5 {[%emt 0:01:30]} 19. Be2 {[%emt 0:00:08]} Nf7 {[%emt 0:22:05]} 20. Be3 {[%emt 0:01:01]} c6 {[%emt 0:01:47]} 21. dxc6 {[%emt 0:01:01]} bxc6 {[%emt 0:00:04]} 22. Nd4 {[%emt 0:00:22]} Be4 {[%emt 0:00:11]} 23. Bc4 {[%emt 0:06:33]} Kh8 {[%emt 0:21:04]} 24. f3 {[%emt 0:01:56]} Ne5 {[%emt 0:06:32]} 25. Bb3 {[%emt 0:03:32]} Bxf3 {[%emt 0:02:11]} 26. Nxf3 {[%emt 0:15:16]} Rxf3 {[%emt 0:00:17]} 27. Bf4 {[%emt 0:02:00]} Rd3 {[%emt 0:01:55]} 28. Qc2 {[%emt 0:02:58]} Rd4 {[%emt 0:02:29]} 29. Bg3 {[%emt 0:00:36]} d5 {[%emt 0:04:01]} 30. Re3 {[%emt 0:03:35]} Nc4 {[%emt 0:08:50]} 31. Rxe8+ {[%emt 0:00:51]} Qxe8 {[%emt 0:00:04]} 32. Re1 {[%emt 0:10:56]} Qd7 {[%emt 0:06:11]} 33. Bxc4 {[%emt 0:02:42]} Rxc4 {[%emt 0:00:30]} 34. Qb3 {[%emt 0:00:02]} h6 {[%emt 0:01:27]} 35. Be5 {[%emt 0:02:52]} Kh7 {[%emt 0:05:01]} 36. Bxg7 {[%emt 0:01:58]} Qxg7 {[%emt 0:00:04]} 37. Qa3 {[%emt 0:01:58]} c5 {[%emt 0:02:28]} 38. Qf3 {[%emt 0:00:50]} Rd4 {[%emt 0:00:41]} 39. Re6 {[%emt 0:03:57]} c4 {[%emt 0:03:08]} 40. h3 {[%emt 0:01:40]} Rd2 {[%emt 0:01:25]} 41. Rf6 {[%emt 0:01:20]} Kg8 {[%emt 0:00:20]} 42. Qf4 {[%emt 0:00:04]} Rxb2 {[%emt 0:00:40]} 43. Qe5 {[%emt 0:00:33]} Rb1+ {[%emt 0:00:25]} 44. Kh2 {[%emt 0:00:30]} Rb7 {[%emt 0:00:31]} 45. Qxd5+ {[%emt 0:00:22]} Kh7 {[%emt 0:00:03]} 46. Rc6 {[%emt 0:00:34]} Rd7 {[%emt 0:00:24]} 1/2-1/2

[Event "Hunan Belt and Road Open 2019"]
[Site "Hunan"]
[Date "2019.08.03"]
[Round "6.33"]
[White "Li, Yankai"]
[Black "Fang, Yuxiang"]
[Result "1/2-1/2"]
[ECO "D14"]
[WhiteElo "2439"]
[BlackElo "2476"]
[Annotator "ChessBase"]
[PlyCount "40"]
[EventDate "2019.07.29"]
[EventType "swiss"]
[EventCountry "CHN"]
[SourceTitle "playchess.com"]
[Source "ChessBase"]
[SourceQuality "1"]
[TimeControl "5400+30"]

1. d4 {[%emt 0:03:01]} d5 {[%emt 0:01:22]} 2. c4 {[%emt 0:00:05]} c6 {[%emt 0:01:13]} 3. cxd5 {[%emt 0:01:06]} cxd5 {[%emt 0:00:22]} 4. Nc3 {[%emt 0:00:02]} Nf6 {[%emt 0:00:39]} 5. Bf4 {[%emt 0:00:05]} Nc6 {[%emt 0:00:43]} 6. Nf3 {[%emt 0:06:14]} Bf5 {[%emt 0:05:21]} 7. e3 {[%emt 0:00:05]} e6 {[%emt 0:00:13]} 8. Bd3 {[%emt 0:00:03]} Bxd3 {[%emt 0:00:40]} 9. Qxd3 {[%emt 0:00:04]} Bd6 {[%emt 0:00:11]} 10. Bxd6 {[%emt 0:00:05]} Qxd6 {[%emt 0:00:07]} 11. O-O {[%emt 0:00:04]} O-O {[%emt 0:00:18]} 12. a3 {[%emt 0:00:03]} Rfc8 {[%emt 0:01:40]} 13. Rac1 {[%emt 0:00:30]} h6 {[%emt 0:02:35]} 14. Nb5 {[%emt 0:00:50]} Qb8 {[%emt 0:00:28]} 15. Nc3 {[%emt 0:00:05]} Qd6 {[%emt 0:00:03]} 16. Nb5 {[%emt 0:00:04]} Qb8 {[%emt 0:00:07]} 17. Nc3 {[%emt 0:00:03]} Qd6 {[%emt 0:00:03]} 18. Nb5 {[%emt 0:00:02]} Qb8 {[%emt 0:00:06]} 19. Nc3 {[%emt 0:00:01]} Qd6 {[%emt 0:00:03]} 20. Nb5 {[%emt 0:00:02]} Qb8 {[%emt 0:00:04]} 1/2-1/2

[Event "Hunan Belt and Road Open 2019"]
[Site "Hunan"]
[Date "2019.08.03"]
[Round "6.34"]
[White "Liu, Guanchu"]
[Black "Lin, Weiguo"]
[Result "1-0"]
[ECO "B90"]
[WhiteElo "2449"]
[BlackElo "2408"]
[Annotator "NA"]
[PlyCount "102"]
[EventDate "2019.07.29"]
[EventType "swiss"]
[EventCountry "CHN"]
[SourceTitle "playchess.com"]
[Source "ChessBase"]
[SourceQuality "1"]
[TimeControl "5400+30"]

1. e4 {[%emt 0:03:32]} c5 {[%emt 0:00:00]} 2. Nf3 {[%emt 0:00:35]} d6 {[%emt 0:00:00]} 3. d4 {[%emt 0:00:22]} cxd4 {[%emt 0:00:00]} 4. Nxd4 {[%emt 0:00:07]} Nf6 {[%emt 0:00:00]} 5. Nc3 {[%emt 0:00:10]} a6 {[%emt 0:00:00]} 6. Be3 {[%emt 0:00:32]} e5 {[%emt 0:00:06]} 7. Nb3 {[%emt 0:00:29]} Be6 {[%emt 0:01:46]} 8. Qd2 {[%emt 0:00:09]} Be7 {[%emt 0:01:26]} 9. O-O-O {[%emt 0:00:13]} Nbd7 {[%emt 0:03:16]} 10. f4 {[%emt 0:00:09]} Ng4 {[%emt 0:04:08]} 11. g3 {[%emt 0:00:22]} Nxe3 {[%emt 0:01:00]} 12. Qxe3 {[%emt 0:00:13]} O-O {[%emt 0:10:47]} 13. Kb1 {[%emt 0:01:00]} b5 {[%emt 0:18:21]} 14. f5 {[%emt 0:01:51]} Bxb3 {[%emt 0:01:06]} 15. cxb3 {[%emt 0:00:13]} Nb6 {[%emt 0:06:18]} 16. h4 {[%emt 0:01:43]} Qc7 {[%emt 0:02:18]} 17. g4 {[%emt 0:15:51]} Rfc8 {[%emt 0:00:36]} 18. Bd3 {[%emt 0:00:24]} b4 {[%emt 0:01:46]} 19. Nd5 {[%emt 0:02:44]} Nxd5 {[%emt 0:00:02]} 20. exd5 {[%emt 0:00:09]} Qc5 {[%emt 0:10:10]} 21. Qe4 {[%emt 0:01:48]} Qd4 {[%emt 0:03:42]} 22. Qe2 {[%emt 0:02:59]} e4 {[%emt 0:12:36]} 23. Bxe4 {[%emt 0:00:48]} Qe5 {[%emt 0:00:02]} 24. g5 {[%emt 0:00:25]} Re8 {[%emt 0:00:10]} 25. Rhe1 {[%emt 0:05:50]} Qg3 {[%emt 0:02:20]} 26. Rg1 {[%emt 0:21:08]} Qe5 {[%emt 0:04:38]} 27. Rde1 {[%emt 0:00:13]} Qd4 {[%emt 0:01:02]} 28. f6 {[%emt 0:06:02]} Bf8 {[%emt 0:00:18]} 29. Qc2 {[%emt 0:00:07]} Rac8 {[%emt 0:02:41]} 30. Qd3 {[%emt 0:03:49]} Qxd3+ {[%emt 0:02:09]} 31. Bxd3 {[%emt 0:00:09]} a5 {[%emt 0:00:12]} 32. Bc4 {[%emt 0:06:26]} Re5 {[%emt 0:00:28]} 33. Rxe5 {[%emt 0:05:36]} dxe5 {[%emt 0:01:51]} 34. Kc2 {[%emt 0:00:07]} Bd6 {[%emt 0:00:44]} 35. Kd3 {[%emt 0:00:48]} g6 {[%emt 0:01:49]} 36. Bb5 {[%emt 0:02:12]} Rc5 {[%emt 0:02:25]} 37. Bc6 {[%emt 0:01:05]} h6 {[%emt 0:00:03]} 38. a3 {[%emt 0:01:29]} e4+ {[%emt 0:00:34]} 39. Kxe4 {[%emt 0:00:11]} Rc2 {[%emt 0:00:01]} 40. axb4 {[%emt 0:01:24]} Bxb4 {[%emt 0:00:11]} 41. h5 {[%emt 0:01:58]} Bc5 {[%emt 0:01:23]} 42. Rg3 {[%emt 0:00:15]} Bd6 {[%emt 0:00:16]} 43. Rc3 {[%emt 0:00:12]} Re2+ {[%emt 0:01:39]} 44. Kf3 {[%emt 0:06:49]} Re5 {[%emt 0:00:38]} 45. hxg6 {[%emt 0:00:13]} Rxg5 {[%emt 0:00:49]} 46. Bd7 {[%emt 0:00:05]} Rxg6 {[%emt 0:00:35]} 47. Rc8+ {[%emt 0:00:03]} Bf8 {[%emt 0:00:16]} 48. Rc6 {[%emt 0:00:39]} h5 {[%emt 0:00:31]} 49. Bf5 {[%emt 0:00:13]} Rg1 {[%emt 0:05:28]} 50. d6 {[%emt 0:01:51]} Rf1+ {[%emt 0:00:02]} 51. Ke4 {[%emt 0:00:07]} Re1+ {[%emt 0:00:08]} 1-0

[Event "Hunan Belt and Road Open 2019"]
[Site "Hunan"]
[Date "2019.08.03"]
[Round "6.35"]
[White "Munkhgal, Gombosuren"]
[Black "Setyaki, Azarya Jodi"]
[Result "1/2-1/2"]
[ECO "A48"]
[WhiteElo "2442"]
[BlackElo "2409"]
[Annotator "NA"]
[PlyCount "89"]
[EventDate "2019.07.29"]
[EventType "swiss"]
[EventCountry "CHN"]
[SourceTitle "playchess.com"]
[Source "ChessBase"]
[SourceQuality "1"]
[TimeControl "5400+30"]

1. d4 {[%emt 0:00:00]} Nf6 {[%emt 0:04:29]} 2. Nf3 {[%emt 0:00:00]} g6 {[%emt 0:00:07]} 3. Bg5 {[%emt 0:00:00]} Bg7 {[%emt 0:00:06]} 4. Nbd2 {[%emt 0:00:00]} O-O {[%emt 0:00:06]} 5. e4 {[%emt 0:00:00]} d5 {[%emt 0:00:11]} 6. Bd3 {[%emt 0:00:26]} dxe4 {[%emt 0:03:39]} 7. Nxe4 {[%emt 0:00:07]} Nxe4 {[%emt 0:00:22]} 8. Bxe4 {[%emt 0:00:04]} c5 {[%emt 0:00:45]} 9. c3 {[%emt 0:04:05]} cxd4 {[%emt 0:02:55]} 10. Nxd4 {[%emt 0:01:40]} Qc7 {[%emt 0:01:06]} 11. Be3 {[%emt 0:12:48]} a6 {[%emt 0:05:03]} 12. O-O {[%emt 0:19:31]} Nd7 {[%emt 0:04:46]} 13. a4 {[%emt 0:07:08]} Nb6 {[%emt 0:01:07]} 14. Qb3 {[%emt 0:14:26]} Nc4 {[%emt 0:01:19]} 15. Bc1 {[%emt 0:08:16]} Rb8 {[%emt 0:05:23]} 16. Bd5 {[%emt 0:05:52]} Nb6 {[%emt 0:08:23]} 17. Bf3 {[%emt 0:00:06]} e5 {[%emt 0:00:09]} 18. a5 {[%emt 0:00:16]} Nd7 {[%emt 0:03:18]} 19. Nc2 {[%emt 0:00:33]} Nc5 {[%emt 0:00:13]} 20. Qa3 {[%emt 0:01:55]} Be6 {[%emt 0:00:54]} 21. Be3 {[%emt 0:00:24]} Rfc8 {[%emt 0:01:33]} 22. Nb4 {[%emt 0:04:46]} e4 {[%emt 0:01:02]} 23. Be2 {[%emt 0:02:00]} Bf8 {[%emt 0:05:18]} 24. g3 {[%emt 0:01:32]} Rd8 {[%emt 0:01:28]} 25. Bf4 {[%emt 0:01:49]} Bd6 {[%emt 0:00:07]} 26. Bxd6 {[%emt 0:00:13]} Rxd6 {[%emt 0:00:07]} 27. Rad1 {[%emt 0:00:32]} Rbd8 {[%emt 0:00:06]} 28. Nc2 {[%emt 0:05:15]} Nb3 {[%emt 0:06:44]} 29. Rxd6 {[%emt 0:06:18]} Rxd6 {[%emt 0:02:43]} 30. Rd1 {[%emt 0:00:07]} Rxd1+ {[%emt 0:01:29]} 31. Bxd1 {[%emt 0:00:01]} Nxa5 {[%emt 0:00:25]} 32. Nd4 {[%emt 0:00:14]} Bd5 {[%emt 0:00:53]} 33. Be2 {[%emt 0:00:42]} Nc6 {[%emt 0:01:16]} 34. Qc5 {[%emt 0:01:33]} Qd7 {[%emt 0:01:40]} 35. Nc2 {[%emt 0:01:32]} Be6 {[%emt 0:01:24]} 36. Ne3 {[%emt 0:02:18]} Qd2 {[%emt 0:03:42]} 37. Bxa6 {[%emt 0:00:28]} Qxb2 {[%emt 0:04:41]} 38. Kg2 {[%emt 0:00:14]} h5 {[%emt 0:08:15]} 39. Bb5 {[%emt 0:00:14]} Na5 {[%emt 0:02:12]} 40. Bd7 {[%emt 0:01:24]} Bxd7 {[%emt 0:02:03]} 41. Qxa5 {[%emt 0:00:00]} Be6 {[%emt 0:00:33]} 42. Qd8+ {[%emt 0:00:58]} Kh7 {[%emt 0:00:16]} 43. Nd5 {[%emt 0:00:51]} e3 {[%emt 0:11:43]} 44. Nf6+ Kg7 {[%emt 0:00:01]} 45. Nxh5+ {[%emt 0:00:18]} 1/2-1/2

[Event "Hunan Belt and Road Open 2019"]
[Site "Hunan"]
[Date "2019.08.03"]
[Round "6.36"]
[White "Raja Harshit"]
[Black "Li, Shilong"]
[Result "1/2-1/2"]
[ECO "B62"]
[WhiteElo "2434"]
[BlackElo "2457"]
[Annotator "ChessBase"]
[PlyCount "58"]
[EventDate "2019.07.29"]
[EventType "swiss"]
[EventCountry "CHN"]
[SourceTitle "playchess.com"]
[Source "ChessBase"]
[SourceQuality "1"]
[TimeControl "5400+30"]

1. e4 {[%emt 0:00:01]} c5 {[%emt 0:00:00]} 2. Nf3 {[%emt 0:00:12]} d6 {[%emt 0:00:00]} 3. d4 {[%emt 0:00:05]} cxd4 {[%emt 0:00:00]} 4. Nxd4 {[%emt 0:00:09]} Nf6 {[%emt 0:00:00]} 5. Nc3 {[%emt 0:00:09]} Nc6 {[%emt 0:00:01]} 6. Bg5 {[%emt 0:00:11]} e6 {[%emt 0:00:16]} 7. Qd3 {[%emt 0:00:22]} Be7 {[%emt 0:03:29]} 8. O-O-O {[%emt 0:00:20]} O-O {[%emt 0:00:40]} 9. h4 {[%emt 0:01:57]} Qb6 {[%emt 0:34:04]} 10. Nxc6 {[%emt 0:19:01]} bxc6 {[%emt 0:00:19]} 11. Qg3 {[%emt 0:07:10]} Rb8 {[%emt 0:19:08]} 12. b3 {[%emt 0:00:10]} Qa5 {[%emt 0:01:07]} 13. h5 {[%emt 0:05:23]} Rb7 {[%emt 0:07:09]} 14. Rh3 {[%emt 0:04:58]} e5 {[%emt 0:06:12]} 15. h6 {[%emt 0:20:27]} Bxh3 {[%emt 0:07:29]} 16. hxg7 {[%emt 0:00:06]} Rd8 {[%emt 0:02:15]} 17. Qxh3 {[%emt 0:01:48]} d5 {[%emt 0:00:36]} 18. Be2 {[%emt 0:20:55]} Qa3+ {[%emt 0:10:05]} 19. Kb1 {[%emt 0:01:09]} d4 {[%emt 0:00:08]} 20. Na4 {[%emt 0:04:27]} Qxa4 {[%emt 0:01:01]} 21. Rh1 {[%emt 0:00:05]} d3 {[%emt 0:00:09]} 22. Bxd3 {[%emt 0:02:20]} h5 {[%emt 0:02:13]} 23. Qf5 {[%emt 0:01:25]} Rxd3 {[%emt 0:01:19]} 24. Bxf6 {[%emt 0:03:30]} Bxf6 {[%emt 0:00:46]} 25. Qxf6 {[%emt 0:02:29]} Qd4 {[%emt 0:03:27]} 26. Qh6 {[%emt 0:00:35]} Rd1+ {[%emt 0:00:14]} 27. Rxd1 {[%emt 0:00:04]} Qxd1+ {[%emt 0:00:02]} 28. Kb2 {[%emt 0:00:04]} Qd4+ {[%emt 0:00:03]} 29. Kb1 {[%emt 0:00:24]} Qd1+ {[%emt 0:00:34]} 1/2-1/2